Cogmind - Beta 15 @@@ ROGUE MODE // 2025.10.09 @ 16:35:26 Player: shapeshifter Result: Destroyed by P-70 Sage with Tesla Rifle Performance ------------- Evolutions (5) 2500 Regions Visited (19) 3800 Robots Destroyed (143) 715 Value Destroyed (9987) 9987 Prototype IDs (33) 660 Alien Tech Used (0) 0 Bonus (7916) 7916 TOTAL SCORE: 25578 Bonus ------- High Alert Combat Kills 1147 Follower Combat Kills 2769 Entered Garrisons 1200 Used RIF Installer 2500 Aligned with FarCom 300 Cogmind --------- Core Integrity 0/1000 Matter 295/300 Energy 100/100 System Corruption 25% Temperature Cool (0) Movement Rolling (130) Ox2 Location -5/Garrison Parts ------- > --- POWER (2) -------- (None) > --- PROPULSION (4) --- Compact Wheel Compact Wheel > --- UTILITY (8) ------ Huge Storage Unit Improved Signal Interpreter Transport Network Coupler Relay Coupler [Brawler] (29) Relay Coupler [Sentry] (26) > --- WEAPON (3) ------- (None) > --- INVENTORY (25) --- Deuterium Engine Deuterium Engine Gravity Neutralizer Improved Sensor Array Transmission Jammer Jamming Amplifier Advanced Shield Generator Relay Coupler [NC] (45) Relay Coupler [NC] (39) Relay Coupler [Swarmer] (37) Relay Coupler [Cutter] (39) Relay Coupler [Brawler] (39) Relay Coupler [Duelist] (39) Relay Coupler [Sentry] (41) Relay Coupler [Demolisher] (33) Relay Coupler [Specialist] (31) Relay Coupler [Specialist] (28) Relay Coupler [Hunter] (25) Relay Coupler [Heavy] (18) Relay Coupler [Behemoth] (18) Relay Coupler [Behemoth] (15) Skeleton Box Thief Drone Bay (3/3) Improved Remote Datajack Peak State ------------ > --- POWER ------------ Light Angular Momentum Engine > --- PROPULSION ------- Improved Heavy Treads Improved Heavy Treads > --- UTILITY ---------- Huge Storage Unit Hardened Medium Armor Plating Army-in-a-Box > --- WEAPON ----------- Improved Heavy Machine Gun KE Penetrator > --- INVENTORY -------- Enhanced Nuclear Core Light Quantum Reactor Flexi-carbon Leg Gravity Neutralizer Improved Kinecellerator Improved Kinecellerator Improved Kinecellerator Advanced Transmission Jammer Hardened Medium Armor Plating Hardened Medium Armor Plating Hardened Medium Armor Plating Improved Hardlight Generator Relay Coupler [NC] Relay Coupler [Cutter] Relay Coupler [Sentry] Relay Coupler [Sentry] Relay Coupler [Demolisher] Relay Coupler [Heavy] Relay Coupler [Behemoth] Skeleton Box Long-range Tractor Beam Thief Drone Bay Force Rifle [Rating: 114] Favorites ----------- Power Light Angular Momentum Engine Engine Light Angular Momentum Engine Power Core Enhanced Nuclear Core Reactor Light Quantum Reactor Propulsion Wheel Treads Improved Heavy Treads Leg Carbon-fiber Leg Wheel Wheel Utility Huge Storage Unit Device Advanced Transmission Jammer Storage Huge Storage Unit Processor Machine Analyzer Hackware Relay Coupler [Hunter] Protection Hardened Medium Armor Plating Weapon KE Penetrator Energy Gun Gatling Laser Energy Cannon Improved EM Pulse Cannon Ballistic Gun KE Penetrator Ballistic Cannon AWS/Autocannon Launcher Improved Grenade Launcher Special Weapon Remote Datajack Build | -11 -10 -10 -10 -9 -8 -8 -8 -7 -7 -6 -6 -6 -6 -5 -5 -5 -5 -5 -5 ------- Run | Yrd Mat Min Exi Min Mat Gar Mat Fac Gar Fac Gar Fac Gar Fac Was Fac Gar Fac Gar Slots Evolved 10 | . . . . . 4 . . 2 . 2 . . . 2 . . . . . Power 1 | . . . . . . . . . . . . . . 1 . . . . . Propulsion 2 | . . . . . . . . 1 . . . . . 1 . . . . . Utility 6 | . . . . . 3 . . 1 . 2 . . . . . . . . . Weapon 1 | . . . . . 1 . . . . . . . . . . . . . . Parts Attached 196 | 7 1 6 5 5 10 10 10 7 11 6 25 8 13 15 6 2 26 13 10 Power 27 | 1 . 1 1 . . 2 2 . 1 1 2 1 3 3 3 . 4 1 1 Engine 11 | 1 . 1 . . . . 1 . . 1 2 . 1 1 . . 3 . . Core 10 | . . . 1 . . 2 1 . . . . 1 . 2 . . 1 1 1 Reactor 6 | . . . . . . . . . 1 . . . 2 . 3 . . . . Propulsion 47 | 2 . 1 2 2 . 2 3 1 . 1 5 2 6 4 . . 7 4 5 Treads 13 | 2 . 1 . . . . . . . . 5 1 . . . . 3 . 1 Leg 12 | . . . . . . 2 . . . . . . 6 . . . 4 . . Wheel 22 | . . . 2 2 . . 3 1 . 1 . 1 . 4 . . . 4 4 Hover . | . . . . . . . . . . . . . . . . . . . . Flight . | . . . . . . . . . . . . . . . . . . . . Utility 68 | 2 1 1 2 1 3 3 4 2 6 3 10 2 3 6 1 2 9 5 2 Device 26 | 1 . 1 . . 2 3 . 1 2 1 3 1 1 4 . . 4 2 . Storage 6 | 1 1 . 2 . . . . . . . . 1 . 1 . . . . . Processor 9 | . . . . . 1 . 3 . . . 1 . . 1 . . 1 2 . Hackware 15 | . . . . . . . 1 . 2 1 4 . 2 . . 2 . 1 2 Protection 12 | . . . . 1 . . . 1 2 1 2 . . . 1 . 4 . . Artifact . | . . . . . . . . . . . . . . . . . . . . Weapon 54 | 2 . 3 . 2 7 3 1 4 4 1 8 3 1 2 2 . 6 3 2 Energy Gun 20 | . . 3 . . 4 . 1 2 1 . . 1 . 1 1 . 3 1 2 Energy Cannon 6 | . . . . . 3 1 . . . . . 1 . . 1 . . . . Ballistic Gun 21 | 2 . . . 2 . . . 1 2 . 7 1 1 1 . . 3 1 . Ballistic Cannon 1 | . . . . . . 1 . . . . . . . . . . . . . Launcher 1 | . . . . . . . . . . 1 . . . . . . . . . Special Weapon 5 | . . . . . . 1 . 1 1 . 1 . . . . . . 1 . Impact Weapon . | . . . . . . . . . . . . . . . . . . . . Slashing Weapon . | . . . . . . . . . . . . . . . . . . . . Piercing Weapon . | . . . . . . . . . . . . . . . . . . . . Special Melee Weapon . | . . . . . . . . . . . . . . . . . . . . Unidentified Prototypes 7 | . . 1 . . 1 . . . . . 1 2 . 1 . . 1 . . Corrupted Parts 2 | . . . . . . . . . . . . . . . . . 2 . . System Corruption 7 | . . . . . . . . . . . . . . . . . 7 . . Parts Lost 68 | . . 5 . 1 . 6 . 1 3 3 4 . 8 1 . 2 10 7 17 Power 9 | . . 1 . . . . . . . 1 . . 2 . . . 2 . 3 Propulsion 20 | . . 1 . . . 2 . 1 1 . . . 3 . . . 4 1 7 Utility 17 | . . . . . . 3 . . . . 2 . 2 . . . 2 4 4 Weapon 22 | . . 3 . 1 . 1 . . 2 2 2 . 1 1 . 2 2 2 3 Highest Loss Streak 10 | . . 4 . 1 . 3 . 1 1 2 2 . 3 1 . 2 8 4 10 To Critical Strikes . | . . . . . . . . . . . . . . . . . . . . Average Backups 18 | 3 6 8 15 18 17 17 19 19 17 14 18 18 18 18 19 19 21 24 24 Power 1 | . 1 . 3 4 2 . 1 . . . . . . 1 1 2 2 2 2 Propulsion 1 | 1 2 4 3 2 2 . . 1 1 . 2 . 1 2 . . . . . Utility 11 | . 1 2 7 9 8 8 11 10 12 11 10 12 11 11 11 15 17 20 20 Weapon 2 | . 1 . . 1 3 5 4 3 1 . 3 3 3 2 4 1 . . . Tool/Special . | . . . . . . . . . . . . . . . . . . . . Unused Backups 63 | . . . . . 5 8 3 1 9 . 4 3 . . 6 . 5 1 18 Power 7 | . . . . . 3 . . 1 1 . . 1 . . 1 . . . . Propulsion 4 | . . . . . . 2 . . . . . . . . 1 . 1 . . Utility 44 | . . . . . 2 4 2 . 8 . 4 . . . 1 . 4 1 18 Weapon 8 | . . . . . . 2 1 . . . . 2 . . 3 . . . . Tool/Special . | . . . . . . . . . . . . . . . . . . . . Average Slot Usage (%) 80 | . 100 98 100 97 84 87 71 74 82 65 86 91 67 76 95 98 61 83 82 Engine 2 | . 14 14 . . . . 4 . . 4 6 2 . 3 . . 2 . . Core 3 | . . . 13 14 9 9 4 7 . . . 3 2 6 5 . 1 5 9 Reactor 1 | . . . . . . . . . 6 1 . . . . 5 11 1 4 . Treads 5 | . 28 27 14 . . . . . . . 12 9 . . . . 5 10 1 Leg 2 | . . . . . . 5 2 . . . . . 10 15 . . 7 . . Wheel 7 | . . . 13 28 18 11 15 14 8 5 . 3 2 4 23 23 . 1 17 Device 12 | . 14 14 14 9 11 18 9 8 6 7 12 11 7 17 23 13 10 20 4 Storage 7 | . 14 14 14 14 9 9 9 7 7 6 6 6 6 5 5 5 5 5 5 Processor 7 | . . . . . 5 9 10 13 7 6 12 13 10 5 11 11 2 7 15 Hackware 4 | . . . . . . . 6 7 11 . 11 13 8 . . 8 1 1 10 Protection 4 | . . . . 3 9 3 . 5 9 13 5 6 . . . 5 6 6 4 Energy Gun 5 | . . 16 28 22 10 19 . . 6 8 . . . 1 3 3 4 4 5 Ballistic Gun 6 | . 28 10 . 3 3 . . . 5 . 10 12 9 11 7 6 6 10 2 Ballistic Cannon 1 | . . . . . . . 8 6 . . . . . . . . . . . Special Weapon 2 | . . . . . . . . . 7 5 5 6 3 . 4 3 . . 1 Peak Build Rating 114 | 7 8 14 23 25 43 54 59 71 67 66 87 84 95 91 86 86 114 102 65 Average Rating 62 | 5 7 8 16 23 37 40 52 66 59 58 78 80 75 77 80 79 90 92 54 On Entrance 49 | . 7 8 11 23 23 43 35 59 52 60 66 79 76 52 76 86 82 99 56 Naked Turns . | . . . . . . . . . . . . . . . . . . . . Heaviest Build 186 | 14 29 30 90 98 117 147 148 151 129 127 127 108 174 120 146 146 186 145 121 Greatest Support 150 | 40 40 40 40 26 20 20 26 38 38 28 100 100 55 70 52 52 150 150 64 Greatest Overweight (x) 56 | . . 1 3 4 5 32 14 5 4 4 4 2 34 7 2 2 56 7 6 Average Overweight (x) 2 | . . . 1 3 4 5 5 3 3 4 1 1 2 1 2 2 4 . 1 Largest Inventory Capacity 25 | 8 15 15 25 25 25 25 25 25 25 25 25 25 25 25 25 25 25 25 25 Average Capacity 23 | 7 12 15 18 25 25 25 25 25 25 25 25 25 25 25 25 25 25 25 25 Most Carried 25 | 6 9 13 25 25 25 25 25 25 25 23 25 25 25 25 25 25 25 25 25 Average Carried 22 | 4 6 8 17 24 24 24 24 24 24 19 24 24 21 23 24 24 21 24 24 Final Capacity 25 | 8 15 15 25 25 25 25 25 25 25 25 25 25 25 25 25 25 25 25 25 Final Carried 25 | 5 9 13 25 25 25 25 25 21 23 16 25 23 24 24 25 23 25 25 24 Class Distribution -------------------- 23% | Bothacker-Tank 17% | Mutant 10% | Scavenger-Tank 9% | Bothacker-Skirmisher 6% | Skirmisher 6% | Bothacker-Mutant 6% | Scavenger-Mutant 6% | Botlord-Mutant 4% | Bothacker-Gunner 4% | Botlord-Gunner Dominant Class ---------------- Mutant | -10/Materials Mutant | -10/Mines Mutant | -10/Exiles Mutant | -9/Mines Skirmisher | -8/Materials Skirmisher | -8/Garrison Bothacker-Skirmisher | -8/Materials Bothacker-Gunner | -7/Factory Bothacker-Tank | -7/Garrison Bothacker-Tank | -6/Factory Bothacker-Tank | -6/Garrison Bothacker-Tank | -6/Factory Botlord-Mutant | -6/Garrison Botlord-Mutant | -5/Factory Botlord-Gunner | -5/Waste Botlord-Gunner | -5/Factory Scavenger-Mutant | -5/Garrison Scavenger-Tank | -5/Factory Botlord-Mutant | -5/Garrison Resources | -11 -10 -10 -10 -9 -8 -8 -8 -7 -7 -6 -6 -6 -6 -5 -5 -5 -5 -5 -5 ----------- Run | Yrd Mat Min Exi Min Mat Gar Mat Fac Gar Fac Gar Fac Gar Fac Was Fac Gar Fac Gar Matter Collected 6206 | 318 . 178 . 107 . 310 293 60 607 41 1072 262 702 372 87 65 824 718 190 Remotely 459 | . . . . . . . . . . . . . . 372 87 . . . . Salvage Created 7257 | 66 123 347 . 63 . 709 1022 172 541 396 568 110 324 357 . . 1286 738 435 Parts 344 | 9 10 21 . . . 27 50 13 30 14 36 4 14 15 . . 42 43 16 Haulers Intercepted 5 | . . . . . . . 3 1 . . . 1 . . . . . . . Recyclers Shooed 2 | 1 . . . . . . . . . . . . . . . . . 1 . Parts Field Recycled . | . . . . . . . . . . . . . . . . . . . . Retrieved Matter . | . . . . . . . . . . . . . . . . . . . . Parts Self-Destructed . | . . . . . . . . . . . . . . . . . . . . Prevented . | . . . . . . . . . . . . . . . . . . . . Kills | -11 -10 -10 -10 -9 -8 -8 -8 -7 -7 -6 -6 -6 -6 -5 -5 -5 -5 -5 -5 ------- Run | Yrd Mat Min Exi Min Mat Gar Mat Fac Gar Fac Gar Fac Gar Fac Was Fac Gar Fac Gar Combat Hostiles Destroyed 105 | . 3 10 . 1 . 17 17 3 8 7 11 . 6 1 . . 7 9 5 Melee 1 | . . . . . . . . . . . 1 . . . . . . . . Guns 72 | . 3 9 . 1 . 13 . . 5 3 10 . 6 1 . . 7 9 5 Cannons 23 | . . . . . . 3 17 3 . . . . . . . . . . . AOE 5 | . . 1 . . . . . . . 4 . . . . . . . . . Classes Destroyed 17 | 1 2 2 . . . 3 6 . . 1 1 . . . . . . 1 . Worker 5 | . . . . . . . 1 1 . 1 . . . 1 . . . 1 . Builder 4 | . . . . . . . 1 . . . . . . 1 . . . 2 . Tunneler 3 | 3 . . . . . . . . . . . . . . . . . . . Hauler 5 | . . . . . . . 3 1 . . . 1 . . . . . . . Recycler 6 | . . . . . . . 2 . . 1 . . . 2 . . . 1 . Operator 4 | . . . . . . . 3 . . 1 . . . . . . . . . Watcher 10 | . 1 . . . . . 5 2 . . 1 . . . . . . 1 . Swarmer 8 | . . 3 . . . . . . . 3 2 . . . . . . . . Saboteur 1 | . . . . . . . . . . . 1 . . . . . . . . Grunt 43 | . 3 6 . . . 7 12 1 1 2 1 . 3 . . . 3 . 4 Brawler 1 | . . . . . . . . . . 1 . . . . . . . . . Duelist 2 | . . . . . . 2 . . . . . . . . . . . . . Sentry 21 | . . . . . . 3 4 1 5 . 4 . . . . . 4 . . Hunter 5 | . . . . . . . 1 . . . . . . 1 . . . 3 . Programmer 22 | . . . . . . 6 . 1 2 1 3 . 3 . . . . 5 1 Behemoth 1 | . . . . . . . . . . . . . . . . . . 1 . Assembled 1 | . . 1 . . . . . . . . . . . . . . . . . Guerrilla 1 | . . . . . . . . . 1 . . . . . . . . . . Best Kill Streak 5 | 2 2 3 . 1 . 5 4 2 2 4 2 1 2 3 . . 3 3 2 Combat Bots Only 5 | . 2 3 . 1 . 5 3 1 2 3 2 . 2 1 . . 3 2 2 Max Kills in Single Turn 2 | 1 1 1 . 1 . 2 1 2 1 2 2 1 2 1 . . 1 1 1 Gunslinging 1 | . . . . . . . . . . . 1 . 1 . . . . . . Exploded 2 | . . 1 . . . . . . . 2 . . . . . . . . . Melee 1 | . . . . . . . . . . . 1 . . . . . . . . Uniques/NPCs Destroyed 1 | . . . . 1 . . . . . . . . . . . . . . . YI-UF0 (-9/Mines) Combat | -11 -10 -10 -10 -9 -8 -8 -8 -7 -7 -6 -6 -6 -6 -5 -5 -5 -5 -5 -5 -------- Run | Yrd Mat Min Exi Min Mat Gar Mat Fac Gar Fac Gar Fac Gar Fac Was Fac Gar Fac Gar Hostile Shots Fired 1260 | . 40 82 . 8 . 48 35 46 183 51 200 1 106 33 . 28 118 175 106 Missed 359 | . 9 28 . 4 . 13 9 16 61 11 80 . 23 5 . 9 23 54 14 Hits 901 | . 31 54 . 4 . 35 26 30 122 40 120 1 83 28 . 19 95 121 92 Melee 14 | . . . . . . 2 . . . . 2 . 10 . . . . . . Projectile 887 | . 31 54 . 4 . 33 26 30 122 40 118 1 73 28 . 19 95 121 92 AOE 9 | . . . . 8 . . . . . . . . 1 . . . . . . Critical Strikes 25 | . . . . . . 2 1 2 2 1 1 . 3 . . 1 2 3 7 Damage Taken 14033 | . 307 523 . 200 . 605 377 359 1170 855 1815 31 1698 336 . 304 1728 1817 1908 Core 2457 | . 38 105 . . . 128 117 88 165 90 374 . 350 48 . 36 172 98 648 Absorbed by Shields 850 | . . . . . . 14 . . . . . . . 168 . . 162 486 20 Redirected to Shielding 105 | . . . . . . . . 15 37 . 53 . . . . . . . . Ignored by Resistances 266 | . . . . . . . . . . 35 201 4 26 . . . . . . Core Remaining (%) 52 | 100 . . . 42 . . 55 . 63 . . . 4 . . . . . . Volleys Fired 649 | 12 12 38 . 4 . 46 14 21 76 36 67 7 61 20 12 17 90 73 43 Largest 3 | 2 2 2 . 2 . 3 1 1 2 2 3 2 2 2 1 2 3 3 2 Hottest 240 | 40 40 105 . 88 . 240 69 28 100 100 99 113 66 50 65 65 194 147 150 Shots Fired 1124 | 24 24 66 . 6 . 97 75 30 80 41 121 11 110 40 12 28 143 158 58 Gun 946 | 24 24 66 . 6 . 69 1 21 71 20 103 8 99 40 12 26 143 158 55 Cannon 111 | . . . . . . 28 74 9 . . . . . . . . . . . Launcher 16 | . . . . . . . . . . 16 . . . . . . . . . Special 51 | . . . . . . . . . 9 5 18 3 11 . . 2 . . 3 Kinetic 717 | 24 24 27 . 4 . 7 60 30 35 . 103 7 99 40 . 24 96 122 15 Thermal 222 | . . 12 . 2 . 69 1 . . . . 1 . . 12 2 47 36 40 Explosive 16 | . . . . . . . . . . 16 . . . . . . . . . Electromagnetic 118 | . . 27 . . . 21 14 . 36 20 . . . . . . . . . Robot Hit Streak 52 | 3 9 5 . 2 . 13 18 8 13 10 11 3 14 6 . 5 52 9 8 Robot Miss Streak 7 | 2 2 3 . 2 . 3 3 3 2 4 6 1 5 3 . 2 7 4 3 Penetration Max 1 | . . . . . . . . . . . 1 . 1 1 . . . 1 . Secondary Targets 11 | . 1 2 . . . 4 . . . . 1 . 1 . . . . 1 1 Max Gunslinging Chain 1 | . 1 1 . . . 1 . . . . 1 . 1 . . . . 1 1 Autonomous 85 | . . . . . . 7 60 10 . . . . . . . . 8 . . Shots Hit Robots 658 | 15 14 37 . 3 . 63 59 21 43 25 56 6 58 24 . 19 100 82 33 Core Hits 271 | 6 6 15 . 1 . 38 24 4 19 21 17 2 14 9 . 4 49 30 12 Critical Kills 4 | . . . . . . . . . . . 1 . 1 . . . 2 . . Critical Parts Destroyed 6 | . 1 . . . . . . . . . . . 1 . . . 1 3 . Critical Strikes 25 | . 1 1 . . . 1 6 1 . . 1 . 2 . . . 4 7 1 Burn 5 | . . . . . . . . . . . . . . . . . 1 3 1 Destroy 11 | . 1 . . . . . . . . . 1 . 2 . . . 3 4 . Blast 8 | . . . . . . 1 6 1 . . . . . . . . . . . Corrupt 1 | . . 1 . . . . . . . . . . . . . . . . . Melee Attacks . | . . . . . . . . . . . . . . . . . . . . Impact . | . . . . . . . . . . . . . . . . . . . . Slashing . | . . . . . . . . . . . . . . . . . . . . Piercing . | . . . . . . . . . . . . . . . . . . . . Sneak Attacks . | . . . . . . . . . . . . . . . . . . . . Combat Hostiles . | . . . . . . . . . . . . . . . . . . . . Follow-up Attacks . | . . . . . . . . . . . . . . . . . . . . Damage Inflicted 19512 | 180 148 517 . 42 . 2125 4202 1189 946 1137 1174 97 1319 472 . 424 2359 2276 905 Guns 12860 | 180 148 483 . 42 . 1543 17 284 896 310 1174 97 1319 472 . 424 2359 2276 836 Cannons 5503 | . . . . . . 582 4185 736 . . . . . . . . . . . Explosions 1080 | . . 34 . . . . . 169 50 827 . . . . . . . . . Melee . | . . . . . . . . . . . . . . . . . . . . Ramming 69 | . . . . . . . . . . . . . . . . . . . 69 Kinetic 13878 | 180 148 172 . 42 . 582 3783 1020 616 . 1174 97 1319 472 . 424 1856 1789 204 Thermal 3773 | . . 139 . . . 1543 17 169 50 233 . . . . . . 503 487 632 Explosive 586 | . . . . . . . . . . 586 . . . . . . . . . Electromagnetic 1206 | . . 206 . . . . 402 . 280 318 . . . . . . . . . Impact . | . . . . . . . . . . . . . . . . . . . . Slashing . | . . . . . . . . . . . . . . . . . . . . Piercing . | . . . . . . . . . . . . . . . . . . . . Highest Corruption 25 | . . . . . . 3 3 5 6 2 4 4 9 . . . 7 11 25 Average Corruption 4 | . . . . . . 2 3 3 5 1 2 4 8 . . . 5 7 12 Corruption Purged . | . . . . . . . . . . . . . . . . . . . . Corruption Blocked . | . . . . . . . . . . . . . . . . . . . . Effects 290 | . . . . . . 14 25 5 28 3 41 13 52 . . . 42 56 11 Message Errors 68 | . . . . . . 2 7 . 5 1 8 3 12 . . . 12 17 1 Matter Fused 68 | . . . . . . 6 6 1 8 1 8 5 10 . . . 6 14 3 Heat Flow Errors 41 | . . . . . . 2 5 2 2 . 8 2 8 . . . 3 9 . Energy Discharges 36 | . . . . . . . 2 1 5 . 6 . 9 . . . 7 2 4 Parts Rejected 3 | . . . . . . . . . . . . . 1 . . . 1 1 . Data Loss (minor) 33 | . . . . . . 3 2 1 2 1 7 2 4 . . . 8 2 1 Data Loss (major) 12 | . . . . . . . 1 . 3 . 2 1 2 . . . 2 1 . Misfires 14 | . . . . . . . 1 . 2 . 1 . 5 . . . . 4 1 Alerts 7 | . . . . . . 1 1 . 1 . . . 1 . . . 2 1 . Weapon Failures 8 | . . . . . . . . . . . 1 . . . . . 1 5 1 Overload Shots . | . . . . . . . . . . . . . . . . . . . . Overflow Damage 1056 | . . 6 . . . 123 567 343 . 17 . . . . . . . . . Projectiles 968 | . . . . . . 123 567 278 . . . . . . . . . . . Explosions 88 | . . 6 . . . . . 65 . 17 . . . . . . . . . Melee . | . . . . . . . . . . . . . . . . . . . . Knockbacks 14 | . . . . . . 4 8 2 . . . . . . . . . . . Impact . | . . . . . . . . . . . . . . . . . . . . Kinetic 13 | . . . . . . 4 7 2 . . . . . . . . . . . Secondary 1 | . . . . . . . 1 . . . . . . . . . . . . Self-Inflicted Damage 363 | . . 14 . . . . . . 62 255 . . . . . . . . 32 Shots 11 | . . 1 . . . . . . 1 9 . . . . . . . . . Rammed 11 | . . . . . . . . . . . . . . . . . . . 11 Targets Rammed 11 | . . . . . . . . . . . . . . . . . . . 11 Kicked . | . . . . . . . . . . . . . . . . . . . . Crushed . | . . . . . . . . . . . . . . . . . . . . Highest Temperature 419 | . 12 204 . 84 . 419 244 142 270 45 185 277 291 2 54 89 334 271 146 Average Temperature 83 | . 7 56 . 50 . 138 92 71 68 21 47 106 106 1 22 35 98 85 53 Received Heat Transfer 2509 | . 114 168 . . . 105 171 12 282 90 306 9 400 . . 108 223 89 432 Effects 3 | . . . . . . 3 . . . . . . . . . . . . . Shutdowns 2 | . . . . . . 2 . . . . . . . . . . . . . Interference 1 | . . . . . . 1 . . . . . . . . . . . . . Siege Activations . | . . . . . . . . . . . . . . . . . . . . Martial Activations . | . . . . . . . . . . . . . . . . . . . . Shielding Activations . | . . . . . . . . . . . . . . . . . . . . Robots Disrupted . | . . . . . . . . . . . . . . . . . . . . Combat Hostiles . | . . . . . . . . . . . . . . . . . . . . Robots Corrupted 2 | . . . . . . . . . 2 . . . . . . . . . . Combat Hostiles 2 | . . . . . . . . . 2 . . . . . . . . . . Parts Fried 3 | . . . . . . . 1 . 1 1 . . . . . . . . . Impact Corruptions . | . . . . . . . . . . . . . . . . . . . . Robots Melted 1 | . . . . . . 1 . . . . . . . . . . . . . Combat Hostiles 1 | . . . . . . 1 . . . . . . . . . . . . . Parts Melted 25 | . . 1 . . . 13 . . 4 . . . . . . . 3 . 4 Heat Transferred 6138 | . . 248 . . . 2850 37 100 50 200 . . . . . . 766 925 962 Parts Sabotaged 2 | . . . . . . . . . . . 2 . . . . . . . . Parts Stolen . | . . . . . . . . . . . . . . . . . . . . Parts Stripped . | . . . . . . . . . . . . . . . . . . . . Power Chain Reactions 5 | . . 1 . . . . . . 1 3 . . . . . . . . . Alert | -11 -10 -10 -10 -9 -8 -8 -8 -7 -7 -6 -6 -6 -6 -5 -5 -5 -5 -5 -5 ------- Run | Yrd Mat Min Exi Min Mat Gar Mat Fac Gar Fac Gar Fac Gar Fac Was Fac Gar Fac Gar Maximum Alert Level 4 | . . . . . . 3 2 1 2 2 4 3 3 2 . . 4 2 1 Low Security (%) 27 | 100 100 100 . 100 100 27 . 94 22 . . . . . 100 100 3 . . Level 1 18 | . . . . . . 19 . 5 63 90 12 . . 27 . . 17 39 100 Level 2 33 | . . . . . . 30 100 . 14 9 18 63 63 72 . . 22 60 . Level 3 16 | . . . . . . 22 . . . . 34 36 36 . . . 47 . . Level 4 4 | . . . . . . . . . . . 34 . . . . . 9 . . Level 5 . | . . . . . . . . . . . . . . . . . . . . High Security . | . . . . . . . . . . . . . . . . . . . . Max Security . | . . . . . . . . . . . . . . . . . . . . Peak Influence 1572 | 5 60 70 . . . 946 575 221 583 544 1572 825 915 480 134 20 1256 659 315 Initial 825 | . . . . . . . 460 221 1 305 355 825 415 480 134 . 7 659 270 Average 442 | 1 19 9 . . . 421 511 54 262 345 869 673 711 419 34 2 689 458 272 Influence Increases 7991 | 15 103 236 . . . 1106 597 160 672 515 1297 86 720 103 22 61 1786 347 165 Destroy 0b10 Robot/C 3420 | . 60 220 . . . 500 340 60 240 140 420 40 340 20 . . 760 180 100 Destroy 0b10 Robot/NC 230 | 15 5 . . . . . 75 20 . 15 5 10 5 20 . . 30 25 5 Destroy Leader 450 | . 22 10 . . . 20 106 26 20 30 20 14 40 10 . . 60 62 10 Allied During Kill 601 | . . 4 . . . 47 . . 18 . 43 20 60 . . . 409 . . Successful Hack 105 | . 16 . . . . . 18 24 14 33 . . . . . . . . . Disable Machine 360 | . . . . . . . 15 15 45 135 . . 60 45 . . . 45 . Anti-Garrison Action 2000 | . . . . . . 450 . . 250 . 650 . 150 . . . 450 . 50 Destroy Structure 615 | . . 2 . . . 74 13 15 40 147 159 2 20 8 22 16 77 20 . Partial Spotted 15 | . . . . . . 15 . . . . . . . . . . . . . Lose Combat Pursuer 195 | . . . . . . . 30 . 45 15 . . 45 . . 45 . 15 . Influence Decreases 7746 | 15 100 239 . . . 160 1054 647 91 590 233 1065 398 635 405 51 540 1217 306 Entered New Map 3514 | . . 3 . . . . 486 268 1 278 153 747 178 435 249 . 3 597 116 Time Decay 2760 | 15 100 188 . . . . 568 369 . 262 . 318 . 190 156 44 . 550 . Lost Part 562 | . . 20 . . . 60 . 10 30 30 40 . 80 10 . 5 37 70 170 Lost Ally 910 | . . 28 . . . 100 . . 60 20 40 . 140 . . 2 500 . 20 Squads Dispatched 21 | . 3 1 . . . . 4 3 . 3 . 1 . 1 . 1 . 4 . Investigation 4 | . . 1 . . . . 1 1 . 1 . . . . . . . . . Extermination 10 | . . . . . . . . 2 . 2 . 1 . 1 . 1 . 3 . Reinforcement 7 | . 3 . . . . . 3 . . . . . . . . . . 1 . Assault . | . . . . . . . . . . . . . . . . . . . . Garrison . | . . . . . . . . . . . . . . . . . . . . Intercept . | . . . . . . . . . . . . . . . . . . . . Searches Triggered . | . . . . . . . . . . . . . . . . . . . . Construction Impeded 1 | . . . . . . . 1 . . . . . . . . . . . . Haulers Reinforced . | . . . . . . . . . . . . . . . . . . . . Active Scanning Responses . | . . . . . . . . . . . . . . . . . . . . Cargo Convoy Interrupts 1 | . . . . . . . . . . . . . . . . . . 1 . Alert ID Control Effect 11 | . . . . . . . . . 3 . 1 . . . . 7 . . . Stealth | -11 -10 -10 -10 -9 -8 -8 -8 -7 -7 -6 -6 -6 -6 -5 -5 -5 -5 -5 -5 --------- Run | Yrd Mat Min Exi Min Mat Gar Mat Fac Gar Fac Gar Fac Gar Fac Was Fac Gar Fac Gar Distress Signals 4 | . 1 . . . . . . . . . 3 . . . . . . . . Communications Jammed 5 | . . . . . . . . 1 . 2 . . . 1 . . . 1 . Distress Signals 3 | . . . . . . . . . . 1 . . . 1 . . . 1 . Times Spotted 213 | . 12 10 . 1 . 18 25 5 18 12 30 5 27 1 . 7 17 14 11 Peak Tracking Total 10 | . 5 3 . 1 . 3 3 1 3 3 6 1 9 1 . 2 10 3 4 Tactical Retreats 11 | . . . . . . . 2 . 2 1 . . 2 . . 3 . 1 . Traps | -11 -10 -10 -10 -9 -8 -8 -8 -7 -7 -6 -6 -6 -6 -5 -5 -5 -5 -5 -5 ------- Run | Yrd Mat Min Exi Min Mat Gar Mat Fac Gar Fac Gar Fac Gar Fac Was Fac Gar Fac Gar Traps Triggered 24 | . . . . . . 3 1 5 2 1 6 . 3 1 . . 2 . . Indirectly 1 | . . . . . . . . . . 1 . . . . . . . . . Trap Hack Attempts . | . . . . . . . . . . . . . . . . . . . . Triggered . | . . . . . . . . . . . . . . . . . . . . Disarmed . | . . . . . . . . . . . . . . . . . . . . Reprogrammed . | . . . . . . . . . . . . . . . . . . . . Reused . | . . . . . . . . . . . . . . . . . . . . Traps Extracted . | . . . . . . . . . . . . . . . . . . . . Installed . | . . . . . . . . . . . . . . . . . . . . Triggered . | . . . . . . . . . . . . . . . . . . . . Machines | -11 -10 -10 -10 -9 -8 -8 -8 -7 -7 -6 -6 -6 -6 -5 -5 -5 -5 -5 -5 ---------- Run | Yrd Mat Min Exi Min Mat Gar Mat Fac Gar Fac Gar Fac Gar Fac Was Fac Gar Fac Gar Machines Disabled 50 | . . . . . . 8 1 1 7 9 9 . 4 3 . . 4 3 1 Max in Single Turn 2 | . . . . . . 2 1 1 1 2 2 . 2 1 . . 1 1 1 Garrison Relay 18 | . . . . . . 6 . . 3 . 4 . . . . . 4 . 1 Phase Generator 2 | . . . . . . 1 . . . . 1 . . . . . . . . Machines Repaired . | . . . . . . . . . . . . . . . . . . . . Machines Dismantled . | . . . . . . . . . . . . . . . . . . . . Machines Sabotaged . | . . . . . . . . . . . . . . . . . . . . Overloaded Fab Kills . | . . . . . . . . . . . . . . . . . . . . Hacking | -11 -10 -10 -10 -9 -8 -8 -8 -7 -7 -6 -6 -6 -6 -5 -5 -5 -5 -5 -5 --------- Run | Yrd Mat Min Exi Min Mat Gar Mat Fac Gar Fac Gar Fac Gar Fac Was Fac Gar Fac Gar Machines Accessed 53 | . 2 2 2 . 1 1 7 11 2 5 3 3 2 2 . 3 3 4 . Terminals 31 | . 1 . . . . 1 7 6 2 3 3 . 2 1 . 2 3 . . Fabricators 8 | . . . . . . . . 2 . 1 . 1 . 1 . . . 3 . Repair Stations . | . . . . . . . . . . . . . . . . . . . . Recycling Units 4 | . 1 . . . . . . 2 . . . 1 . . . . . . . Scanalyzers . | . . . . . . . . . . . . . . . . . . . . Garrison Access 6 | . . . . . 1 . . 1 . 1 . 1 . . . 1 . 1 . Total Hacks 99 | . 4 2 2 . 1 2 23 19 5 10 5 4 3 4 . 5 6 4 . Successful 38 | . 2 2 2 . 1 . 10 5 1 6 . 1 . 2 . 2 . 4 . Failed 61 | . 2 . . . . 2 13 14 4 4 5 3 3 2 . 3 6 . . Catastrophic 15 | . 1 . . . . . 3 2 1 1 2 1 1 . . 1 2 . . Database Lockouts . | . . . . . . . . . . . . . . . . . . . . Manual 31 | . . . 1 . . . 19 3 . 6 . . . 2 . . . . . Terminals 70 | . 2 . . . . 2 23 11 5 7 5 . 3 2 . 4 6 . . Fabricators 11 | . . . . . . . . 3 . 2 . 1 . 2 . . . 3 . Repair Stations . | . . . . . . . . . . . . . . . . . . . . Recycling Units 8 | . 2 . . . . . . 4 . . . 2 . . . . . . . Scanalyzers . | . . . . . . . . . . . . . . . . . . . . Garrison Access 6 | . . . . . 1 . . 1 . 1 . 1 . . . 1 . 1 . Terminal Hacks 11 | . 1 2 2 . . . 2 . 1 2 . . . . . 1 . . . Record 1 | . . . 1 . . . . . . . . . . . . . . . . Prototype ID Bank 1 | . . . . . . . . . . . . . . . . 1 . . . Open Door 2 | . . 2 . . . . . . . . . . . . . . . . . Open DSF 1 | . . . . . . . . . . 1 . . . . . . . . . Branch Access Points 2 | . 1 . . . . . 1 . . . . . . . . . . . . Emergency Access Points 1 | . . . . . . . . . 1 . . . . . . . . . . Zone Layout 2 | . . . . . . . 1 . . 1 . . . . . . . . . Proto ID Catalog 1 | . . . 1 . . . . . . . . . . . . . . . . Fabricator Hacks 7 | . . . . . . . . 2 . 1 . . . 1 . . . 3 . Network Status 5 | . . . . . . . . 1 . . . . . 1 . . . 3 . Build 2 | . . . . . . . . 1 . 1 . . . . . . . . . Repair Station Hacks . | . . . . . . . . . . . . . . . . . . . . Recycling Unit Hacks 2 | . 1 . . . . . . 1 . . . . . . . . . . . Retrieve Components 2 | . 1 . . . . . . 1 . . . . . . . . . . . Scanalyzer . | . . . . . . . . . . . . . . . . . . . . Garrison Access Hacks 6 | . . . . . 1 . . 1 . 1 . 1 . . . 1 . 1 . Unlock Access 6 | . . . . . 1 . . 1 . 1 . 1 . . . 1 . 1 . Unauthorized Hacks 12 | . . . . . . . 8 1 . 2 . . . 1 . . . . . Terminals 12 | . . . . . . . 8 1 . 2 . . . 1 . . . . . Botnet 5 | . . . . . . . 3 . . 1 . . . 1 . . . . . Skim 7 | . . . . . . . 5 1 . 1 . . . . . . . . . Fabricators . | . . . . . . . . . . . . . . . . . . . . Repair Stations . | . . . . . . . . . . . . . . . . . . . . Recycling Units . | . . . . . . . . . . . . . . . . . . . . Scanalyzers . | . . . . . . . . . . . . . . . . . . . . Garrison Access . | . . . . . . . . . . . . . . . . . . . . Data Cores Recovered 3 | . . . . . . . 2 . . 1 . . . . . . . . . Used . | . . . . . . . . . . . . . . . . . . . . Hacking Detections 36 | . 1 . . . . 1 5 10 2 3 3 2 2 2 . 2 3 . . Full Trace Events 4 | . 1 . . . . . . . . . 1 . 1 . . . 1 . . Feedback Events 1 | . . . . . . . . . . . . . 1 . . . . . . Corruption 1 | . . . . . . . . . . . . . 1 . . . . . . Feedback Blocked . | . . . . . . . . . . . . . . . . . . . . Robot Schematics Acquired . | . . . . . . . . . . . . . . . . . . . . Robots Built 1 | . . . . . . . . . . 1 . . . . . . . . . Authchips . | . . . . . . . . . . . . . . . . . . . . Time 40 | . . . . . . . . . . 40 . . . . . . . . . Total Robot Build Rating 1 | . . . . . . . . . . 1 . . . . . . . . . Part Schematics Acquired . | . . . . . . . . . . . . . . . . . . . . Parts Built 2 | . . . . . . . . 2 . . . . . . . . . . . Authchips . | . . . . . . . . . . . . . . . . . . . . Time 58 | . . . . . . . . 58 . . . . . . . . . . . Total Part Build Rating 14 | . . . . . . . . 14 . . . . . . . . . . . Parts Repaired . | . . . . . . . . . . . . . . . . . . . . Time . | . . . . . . . . . . . . . . . . . . . . Parts Recycled . | . . . . . . . . . . . . . . . . . . . . Recycled Matter . | . . . . . . . . . . . . . . . . . . . . Retrieved Matter . | . . . . . . . . . . . . . . . . . . . . Retrieved Components 3 | . 3 . . . . . . . . . . . . . . . . . . Parts Scanalyzed . | . . . . . . . . . . . . . . . . . . . . Part Schematics Acquired . | . . . . . . . . . . . . . . . . . . . . Parts Damaged . | . . . . . . . . . . . . . . . . . . . . Bothacking | -11 -10 -10 -10 -9 -8 -8 -8 -7 -7 -6 -6 -6 -6 -5 -5 -5 -5 -5 -5 ------------ Run | Yrd Mat Min Exi Min Mat Gar Mat Fac Gar Fac Gar Fac Gar Fac Was Fac Gar Fac Gar Used RIF Installer 5 | . . . . . . 1 . . 1 . 1 . 1 . . . 1 . . Coupler Efficiency 1 | . . . . . . . . . . . 1 . . . . . . . . Hotswap 1 | . . . . . . . . . . . . . . . . . 1 . . Patrol Navigation 1 | . . . . . . . . . . . . . 1 . . . . . . Alert ID Control 1 | . . . . . . . . . 1 . . . . . . . . . . Robots Hacked 26 | . . . . . . . . . 7 1 5 2 7 . . 2 . . 2 Non-combat 1 | . . . . . . . . . . . . . . . . 1 . . . Combat 25 | . . . . . . . . . 7 1 5 2 7 . . 1 . . 2 Robot Hacks Applied 27 | . . . . . . . . . 7 1 5 2 8 . . 2 . . 2 drop_inventory 1 | . . . . . . . . . . . . . . . . 1 . . . find_shortcuts 1 | . . . . . . . . . . . . . 1 . . . . . . disrupt_area 1 | . . . . . . . . . . . 1 . . . . . . . . spike_heat 1 | . . . . . . . . . 1 . . . . . . . . . . amplify_resonance 10 | . . . . . . . . . 2 . 1 1 5 . . . . . 1 reboot_system 2 | . . . . . . . . . 1 . . . 1 . . . . . . overwrite_iff 4 | . . . . . . . . . 1 . 2 . . . . . . . 1 formatsys_high 7 | . . . . . . . . . 2 1 1 1 1 . . 1 . . . Relay Couplers Released 73 | . . . . . . 23 . . 13 . 15 . . . . . 19 . 3 Machine Destruction 73 | . . . . . . 23 . . 13 . 15 . . . . . 19 . 3 Attached 13 | . . . . . . . . . 2 1 4 . 2 . . 2 . . 2 Fabnet Peak Effective % . | . . . . . . . . . . . . . . . . . . . . Robots Rewired 9 | . . . . . . 6 . . 2 . 1 . . . . . . . . Allies Hacked 1 | . . . . . . . . . . . . . 1 . . . . . . Hacks Repelled . | . . . . . . . . . . . . . . . . . . . . Allies | -11 -10 -10 -10 -9 -8 -8 -8 -7 -7 -6 -6 -6 -6 -5 -5 -5 -5 -5 -5 -------- Run | Yrd Mat Min Exi Min Mat Gar Mat Fac Gar Fac Gar Fac Gar Fac Was Fac Gar Fac Gar Total Allies 28 | . . 3 . . . 7 . . 5 2 7 1 1 . . 1 . . 1 Largest Group 4 | . . 3 . . . 4 . . 4 2 3 4 4 . . 1 . . 1 Highest-Rated Group 182 | . . 40 . . . 64 . . 132 39 171 182 177 . . 85 . . 49 Highest-Rated Ally 148 | . . 16 . . . 20 . . 39 29 148 62 62 . . 85 . . 49 Total Orders 7 | . . . . . . . . . . . . . 1 . . . 6 . . STAY 1 | . . . . . . . . . . . . . . . . . 1 . . FOLLOW 1 | . . . . . . . . . . . . . . . . . 1 . . RETURN 5 | . . . . . . . . . . . . . 1 . . . 4 . . Ally Attacks 552 | . . 12 . . . 67 . . 20 5 56 12 54 . . 12 311 . 3 Total Damage 10963 | . . 166 . . . 1027 . . 593 93 1722 301 1224 . . 529 5235 . 73 Kills 83 | . . 2 . . . 8 . . 7 . 11 3 11 . . 7 34 . . Allies Corrupted . | . . . . . . . . . . . . . . . . . . . . Allies Melted . | . . . . . . . . . . . . . . . . . . . . Intel | -11 -10 -10 -10 -9 -8 -8 -8 -7 -7 -6 -6 -6 -6 -5 -5 -5 -5 -5 -5 ------- Run | Yrd Mat Min Exi Min Mat Gar Mat Fac Gar Fac Gar Fac Gar Fac Was Fac Gar Fac Gar Active Infowar (turns) 16378 | 25 308 1208 469 238 83 1730 1421 1172 1313 563 2134 709 1053 396 579 353 781 1585 258 Seismic 2248 | 25 308 1208 469 238 . . . . . . . . . . . . . . . T.N.C. 3330 | . . . . . . . 746 . . . . . . . . . 741 1585 258 Machine Analysis 9968 | . . . . . 83 1730 675 1172 1313 563 2134 709 1052 . . . . 302 235 Jamming 9361 | . . . . . . . . 282 1190 563 2134 709 1038 396 579 353 762 1355 . Robot Analysis Total . | . . . . . . . . . . . . . . . . . . . . Derelict Logs Recovered 1 | . . . . 1 . . . . . . . . . . . . . . . Drone Launches 40 | . . . . . . . . . . . . . 8 . . . 32 . . Drone Recoveries 10 | . . . . . . . . . . . . . 6 . . . 4 . . Exploration | -11 -10 -10 -10 -9 -8 -8 -8 -7 -7 -6 -6 -6 -6 -5 -5 -5 -5 -5 -5 ------------- Run | Yrd Mat Min Exi Min Mat Gar Mat Fac Gar Fac Gar Fac Gar Fac Was Fac Gar Fac Gar Turns Passed 18807 | 162 308 1209 469 338 127 1730 1718 1172 1313 563 2134 709 1676 396 579 353 1982 1585 284 Spaces Moved 8767 | 80 165 469 330 235 66 636 826 754 697 287 816 332 626 183 441 247 628 829 120 Core 32 | 15 . . . . . 2 . . . . . . 8 . . . 7 . . Treads 2945 | 65 165 469 144 . . . . . . . 744 206 . . . . 420 732 . Legs 733 | . . . . . . 117 27 . . . . . 312 101 . . 176 . . Wheels 5057 | . . . 186 235 66 517 799 754 697 287 72 126 306 82 441 247 25 97 120 Hover . | . . . . . . . . . . . . . . . . . . . . Flight . | . . . . . . . . . . . . . . . . . . . . Fastest Speed 50 | 50 160 160 105 135 140 155 135 120 120 160 145 125 125 120 120 120 120 115 115 Average Speed 176 | 139 160 161 137 135 152 213 179 139 150 160 221 196 228 164 120 120 252 159 126 Slowest Speed 2850 | 160 160 240 160 140 155 1650 610 165 160 160 240 240 1750 205 120 120 2850 240 190 Overloaded Moves . | . . . . . . . . . . . . . . . . . . . . Propulsion Burnouts . | . . . . . . . . . . . . . . . . . . . . Robots Hopped . | . . . . . . . . . . . . . . . . . . . . Potential Cave-ins . | . . . . . . . . . . . . . . . . . . . . Cave-ins Triggered . | . . . . . . . . . . . . . . . . . . . . Exploration Rate (%) 44 | 6 46 75 68 51 6 58 76 23 88 8 92 11 68 4 95 10 72 20 15 Regions Visited 19 Branch Regions 3 Pre-discovered Areas 6 | . . 1 1 1 . . 3 . . . . . . . . . . . . Known Exits Taken 8 | . 1 . . . 1 . 1 1 . 1 . 1 . . . 1 . 1 . Unknown Exits Taken 4 | 1 . 1 1 1 . . . . . . . . . . . . . . . Scrap Searched 1 | . . . . 1 . . . . . . . . . . . . . . . Spaces Dug 48 | . . . . . . . . . . 20 3 1 4 . 11 2 1 6 . Terrain Destroyed 505 | . . 2 . . . 81 13 14 7 192 151 2 5 8 12 2 3 11 2 Melee . | . . . . . . . . . . . . . . . . . . . . Projectile 68 | . . . . . . . 13 . . . 11 2 5 8 12 2 3 10 2 AOE 435 | . . 2 . . . 81 . 13 7 192 140 . . . . . . . . Terrain Rammed . | . . . . . . . . . . . . . . . . . . . . Walls Destroyed . | . . . . . . . . . . . . . . . . . . . . Machines Disabled . | . . . . . . . . . . . . . . . . . . . . Actions | -11 -10 -10 -10 -9 -8 -8 -8 -7 -7 -6 -6 -6 -6 -5 -5 -5 -5 -5 -5 --------- Run | Yrd Mat Min Exi Min Mat Gar Mat Fac Gar Fac Gar Fac Gar Fac Was Fac Gar Fac Gar Total 11217 | 109 188 857 343 250 93 925 1057 858 896 352 1046 383 777 241 483 277 917 967 198 Wait 909 | . 5 333 . . . 111 143 45 31 15 66 13 27 2 1 6 73 31 7 Move 8753 | 79 164 468 329 234 66 635 825 753 696 287 815 332 625 183 440 247 627 828 120 Hop . | . . . . . . . . . . . . . . . . . . . . Pick Up 208 | 11 5 10 7 1 6 15 18 1 17 3 31 6 13 9 10 1 33 9 2 Fast Attach 77 | 1 . . . 4 7 3 12 4 5 . 5 5 2 8 1 . 6 7 7 Attach 128 | 6 . 5 . . 2 3 10 8 6 8 17 2 14 9 1 2 25 6 4 Detach 30 | . . . . . 3 1 4 3 2 . 5 . 4 . . . 6 . 2 Swap 75 | . 1 2 5 1 1 13 3 1 7 1 10 4 7 2 5 3 4 4 1 Drop 188 | . 1 1 2 6 8 16 28 6 21 2 22 14 8 8 11 1 23 9 1 Fire 649 | 12 12 38 . 4 . 46 14 21 76 36 67 7 61 20 12 17 90 73 43 Melee . | . . . . . . . . . . . . . . . . . . . . Ram 11 | . . . . . . . . . . . . . . . . . . . 11 Kick . | . . . . . . . . . . . . . . . . . . . . Crush . | . . . . . . . . . . . . . . . . . . . . Escape Stasis 94 | . . . . . . 8 . 16 16 . 8 . 16 . . . 30 . . Rewire 95 | . . . . . . 74 . . 19 . . . . . 2 . . . . Trap . | . . . . . . . . . . . . . . . . . . . . Miscellaneous . | . . . . . . . . . . . . . . . . . . . . Route ------- -11/Scrapyard -10/Materials -10/Mines -10/Exiles -9/Mines -8/Materials -8/Garrison (discovered 2 exits: *Mat x2) -8/Materials (discovered 3 exits: *Fac x3) -7/Factory (discovered 3 exits: *Fac x2 / Gar) -7/Garrison (discovered 3 exits: *Fac x3) -6/Factory (discovered 2 exits: [Ext] / Gar) -6/Garrison (discovered 3 exits: *Fac x3) -6/Factory -6/Garrison (discovered 3 exits: *Fac x3) -5/Factory -5/Waste -5/Factory (discovered 2 exits: *Fac / Gar) -5/Garrison (discovered 3 exits: *Fac x3) -5/Factory (discovered 2 exits: *Fac / Gar) -5/Garrison History --------- Turn | Location | Event 8 | -11/Scrapyard | Discovered new exit (range 15) 163 | -11/Scrapyard | Entered Materials 318 | -10/Materials | Build established: Mutant 387 | -10/Materials | Identified exit to Mines 471 | -10/Materials | Entered Mines 554 | -10/Mines | Learned location of Storage (-9) 622 | -10/Mines | Assisted by bots powering up and referring to "LRC-V3" 665 | -10/Mines | Found the Drone Emporium 675 | -10/Mines | Found Prototype Device 676 | -10/Mines | Identified Thief Drone Bay 983 | -10/Mines | Excavation squad dispatched 983 | -10/Mines | A large section of the Mines collapsed 1233 | -10/Mines | Excavation squad dispatched 1416 | -10/Mines | Core integrity fell below 50% 1449 | -10/Mines | Lost 4 parts (1p1n2w) 1483 | -10/Mines | Excavation squad dispatched 1622 | -10/Mines | Met a Derelict shopkeep closing up shop 1673 | -10/Mines | Deemed a non-threat by the Exiles lab entrance 1673 | -10/Mines | Discovered new exit (range 5) 1680 | -10/Mines | Entered Exiles 1729 | -10/Exiles | Met 8R-AWN 1754 | -10/Exiles | Met EX-HEX 1826 | -10/Exiles | Met EX-DEC 1852 | -10/Exiles | Learned location of Zion (-6) 1965 | -10/Exiles | Met EX-BIN 1980 | -10/Exiles | Aligned with FarCom system 1981 | -10/Exiles | Given EX-Vault access code 2005 | -10/Exiles | Opened EX-Vault 2017 | -10/Exiles | Found Army-in-a-Box 2022 | -10/Exiles | Found AWS/Autocannon 2026 | -10/Exiles | Found Skeleton Box 2054 | -10/Exiles | Warned to stay clear of 0b10 Research branches 2135 | -10/Exiles | Discovered new exit (range 14) 2149 | -10/Exiles | Stole three prototypes: Skeleton Box, Army-in-a-Box, AWS/Autocannon 2149 | -10/Exiles | Entered Mines 2370 | -9/Mines | Found DCF Scrap (15 items) 2425 | -9/Mines | Discovered new exit (range 14) 2435 | -9/Mines | Destroyed YI-UF0 2487 | -9/Mines | Entered Materials 2487 | -8/Materials | Evolved 4 slots: Utility x3, Weapon x1 2614 | -8/Materials | Identified exit to Garrison 2614 | -8/Materials | Entered Garrison 2638 | -8/Garrison | Remotely autohacked Sealed Heavy Doors 2638 | -8/Garrison | Rescued a captive Derelict 2656 | -8/Garrison | Triggered checkpoint 2688 | -8/Garrison | Triggered checkpoint 2700 | -8/Garrison | Garrison Relay disabled 2836 | -8/Garrison | Build established: Skirmisher 3089 | -8/Garrison | Phase Generator disabled 3418 | -8/Garrison | Garrison Relay disabled 3435 | -8/Garrison | Triggered checkpoint 3482 | -8/Garrison | Triggered checkpoint 3497 | -8/Garrison | Discovered new exit (range 3) 3626 | -8/Garrison | Triggered checkpoint 3650 | -8/Garrison | Triggered checkpoint 3670 | -8/Garrison | Triggered checkpoint 3756 | -8/Garrison | P-60 Hacker assimilated allied Trooper 3f 3797 | -8/Garrison | Lost 3 parts (1n1u1w) 3872 | -8/Garrison | Discovered new exit (range 5) 3942 | -8/Garrison | Triggered checkpoint 4064 | -8/Garrison | Installed Relay Interface Framework 4229 | -8/Garrison | Garrison Relay disabled 4231 | -8/Garrison | Garrison Relay disabled 4241 | -8/Garrison | Garrison Relay disabled 4243 | -8/Garrison | Garrison Relay disabled 4344 | -8/Garrison | Entered Materials 4356 | -8/Materials | Build established: Bothacker-Mutant 4665 | -8/Materials | Build established: Bothacker-Skirmisher 4679 | -8/Materials | Discovered new exit (range 10) 4842 | -8/Materials | Discovered new exit (range 10) 5302 | -8/Materials | Learned location of Lower Caves (-6) 5331 | -8/Materials | Identified exit to Factory 5350 | -8/Materials | Learned Storage security intel 5357 | -8/Materials | Learned 2 Storage zone layouts 5358 | -8/Materials | Learned Storage interactive machine intel 5359 | -8/Materials | Learned Factory stockpile data 5360 | -8/Materials | Learned Recycling recycling unit intel 5362 | -8/Materials | Learned Factory terminal intel 5373 | -8/Materials | Learned location of Lower Caves (-7) 5394 | -8/Materials | Learned Storage trap positions 6062 | -8/Materials | Entered Factory 6062 | -7/Factory | Evolved 2 slots: Propulsion x1, Utility x1 6064 | -7/Factory | Loaded intel: 26 terminal locations 6064 | -7/Factory | FarCom data flow suspended 6338 | -7/Factory | Fabricated Adv. Cryofiber Web? 6361 | -7/Factory | Build established: Bothacker-Gunner 6478 | -7/Factory | Discovered new exit (range 15) 6682 | -7/Factory | Discovered new exit (range 13) 6896 | -7/Factory | Identified exit to Garrison 7177 | -7/Factory | AWS/Autocannon suddenly broke down 7234 | -7/Factory | Entered Garrison 7270 | -7/Garrison | Triggered checkpoint 7321 | -7/Garrison | Garrison Relay disabled 7442 | -7/Garrison | Triggered checkpoint 7504 | -7/Garrison | Triggered checkpoint 7594 | -7/Garrison | Triggered checkpoint 7654 | -7/Garrison | Remotely autohacked Sealed Heavy Doors 7731 | -7/Garrison | Discovered new exit (range 14) 7756 | -7/Garrison | Expanded RIF knowledge: Alert ID Control 7886 | -7/Garrison | Triggered checkpoint 7988 | -7/Garrison | Triggered checkpoint 8064 | -7/Garrison | Build established: Bothacker-Tank 8159 | -7/Garrison | Discovered new exit (range 12) 8217 | -7/Garrison | Garrison Relay disabled 8344 | -7/Garrison | Triggered checkpoint 8389 | -7/Garrison | Garrison Relay disabled 8457 | -7/Garrison | Discovered new exit (range 15) 8547 | -7/Garrison | Entered Factory 8547 | -6/Factory | Evolved 2 slots: Utility x2 8553 | -6/Factory | Identified exit to DSF 8910 | -6/Factory | Discovered new exit (range 17) 9044 | -6/Factory | Fabricated A-02 Transporter (x1) 9108 | -6/Factory | Identified exit to Garrison 9110 | -6/Factory | Entered Garrison 9133 | -6/Garrison | Spotted B-75 Beast 9189 | -6/Garrison | Rewired B-90 Cyclops 9195 | -6/Garrison | Allies destroyed B-75 Beast 9330 | -6/Garrison | Triggered checkpoint 9380 | -6/Garrison | Garrison Relay disabled 9464 | -6/Garrison | Build established: Bothacker-Mutant 9479 | -6/Garrison | Triggered checkpoint 9775 | -6/Garrison | Build established: Bothacker-Tank 9880 | -6/Garrison | Triggered checkpoint 9939 | -6/Garrison | Expanded RIF knowledge: Coupler Efficiency 10008 | -6/Garrison | Garrison Relay disabled 10080 | -6/Garrison | Discovered new exit (range 10) 10346 | -6/Garrison | Discovered new exit (range 11) 10436 | -6/Garrison | Garrison Relay disabled 10510 | -6/Garrison | Phase Generator disabled 10571 | -6/Garrison | Core integrity fell below 50% 10799 | -6/Garrison | Triggered checkpoint 10800 | -6/Garrison | Triggered checkpoint 10908 | -6/Garrison | Remotely autohacked Sealed Heavy Doors 10917 | -6/Garrison | Rescued a captive Derelict 10936 | -6/Garrison | Discovered new exit (range 10) 10964 | -6/Garrison | Triggered checkpoint 11067 | -6/Garrison | Found embedded Infiltrators 11069 | -6/Garrison | Garrison Relay disabled 11244 | -6/Garrison | Entered Factory 11244 | -6/Factory | Accompanied by 3 allies 11953 | -6/Factory | Identified exit to Garrison 11953 | -6/Factory | Entered Garrison 11953 | -6/Garrison | Accompanied by 4 allies 12107 | -6/Garrison | Triggered checkpoint 12147 | -6/Garrison | Lost 4 allies 12264 | -6/Garrison | Discovered new exit (range 14) 12309 | -6/Garrison | Expanded RIF knowledge: Patrol Navigation 12515 | -6/Garrison | Lost 3 parts (1p1n1u) 12761 | -6/Garrison | Build established: Botlord-Skirmisher 13001 | -6/Garrison | Core integrity fell below 20% 13042 | -6/Garrison | Lost 3 parts (1p1n1w) 13187 | -6/Garrison | Discovered new exit (range 11) 13366 | -6/Garrison | Build established: Botlord-Mutant 13375 | -6/Garrison | Heavy support dispatched to Factory 13425 | -6/Garrison | Discovered new exit (range 11) 13511 | -6/Garrison | Heavy support dispatched to Factory 13629 | -6/Garrison | Entered Factory 13629 | -5/Factory | Evolved 2 slots: Power x1, Propulsion x1 14025 | -5/Factory | Sucked down chute 14025 | -5/Factory | Entered Waste 14025 | -5/Waste | The area was eerily silent 14319 | -5/Waste | Build established: Botlord-Gunner 14410 | -5/Waste | Discovered new exit (range 16) 14604 | -5/Waste | Entered Factory 14690 | -5/Factory | Spotted B-75 Beast 14703 | -5/Factory | Assimilated Beast 6a with formatsys_high 14940 | -5/Factory | Discovered new exit (range 6) 14957 | -5/Factory | Identified exit to Garrison 14957 | -5/Factory | Entered Garrison 14987 | -5/Garrison | Triggered checkpoint 15041 | -5/Garrison | Lost 8 parts (2p4n1u1w) 15048 | -5/Garrison | Lost 3 allies 15282 | -5/Garrison | Allies destroyed B-75 Beast 15308 | -5/Garrison | Build established: Mutant 15373 | -5/Garrison | Triggered checkpoint 15404 | -5/Garrison | Lost 3 allies 15499 | -5/Garrison | Triggered checkpoint 15549 | -5/Garrison | Triggered checkpoint 15555 | -5/Garrison | Triggered checkpoint 15593 | -5/Garrison | Lost 8 allies 15770 | -5/Garrison | Expanded RIF knowledge: Hotswap 15772 | -5/Garrison | Build established: Scavenger-Mutant 15905 | -5/Garrison | Triggered checkpoint 15961 | -5/Garrison | Lost 4 allies 15964 | -5/Garrison | Discovered new exit (range 8) 16296 | -5/Garrison | Garrison Relay disabled 16410 | -5/Garrison | Garrison Relay disabled 16563 | -5/Garrison | Triggered checkpoint 16578 | -5/Garrison | Discovered new exit (range 11) 16691 | -5/Garrison | Garrison Relay disabled 16707 | -5/Garrison | Build established: Scavenger-Tank 16927 | -5/Garrison | Discovered new exit (range 8) 16939 | -5/Garrison | Entered Factory 17312 | -5/Factory | Spotted B-75 Beast 17402 | -5/Factory | Destroyed B-75 Beast 18185 | -5/Factory | Discovered new exit (range 7) 18197 | -5/Factory | Identified exit to Factory 18329 | -5/Factory | Lost 4 parts (1n1u2w) 18388 | -5/Factory | Cargo convoy interrupted 18460 | -5/Factory | System corruption reached 10% 18517 | -5/Factory | Identified exit to Garrison 18524 | -5/Factory | Entered Garrison 18609 | -5/Garrison | Lost 3 parts (1p2n) 18620 | -5/Garrison | Triggered checkpoint 18644 | -5/Garrison | Core integrity fell below 50% 18689 | -5/Garrison | Lost 4 parts (2n1u1w) 18694 | -5/Garrison | Garrison Relay disabled 18795 | -5/Garrison | Core integrity fell below 20% 18808 | -5/Garrison | Destroyed by P-70 Sage with Tesla Rifle Last Messages --------------- 18783_ Slammed into P-70 Sage. 18784_ P-70 Sage suffers critical hit (Burn). 18787_ Wave Gun destroyed. 18788_ P-70 Sage heat spikes uncontrollably. 18788_ Slammed into P-70 Sage. 18788_ Adv. Heat Sink destroyed. 18789_ P-70 Sage heat damages Hpw. Shock Rifle, Antigrav System, Tesla Rifle. 18790_ P-70 Sage heat damages Antigrav System. 18791_ Slammed into P-70 Sage. 18793_ P-70 Sage heat short circuits Mic. Fission Core. 18793_ Slammed into P-70 Sage. 18794_ Imp. Signal Interpreter broken. 18794_ Destabilizing: Short circuit. 18796_ Slammed into P-70 Sage. 18800_ Com. Wheel destroyed. 18800_ Slammed into P-70 Sage. 18800_ Destabilizing: Core damaged (-40). 18801_ P-70 Sage heat short circuits Hpw. Shock Rifle. 18802_ Acquired 5 matter. Map ----- +----------------------------------------------------+ | ?????????????????????????????????????????????????? | | ?????????????????????????????????????????????????? | | ?????????????????????????????????????????????????? | | ?????????????????????????????????????????????????? | | ?????????????????????????????????????????????????? | | ?????????????????????????????????????????????????? | | ?????????????????????????????????????????????????? | | ?????????????????????????????????????????????????? | | ?????????????????????????????????????????????????? | | ?????????????????????????????????????????????????? | | ?????????????????????????????????????????????????? | | ?????????????????????????????????????????????????? | | ?????????????????????????????????????????????????? | | ?????????????????????????????????????????????????? | | ?????????????????????????????????????????????????? | | ???????????? ??????????????????????????????????? | | ??????????? ??????????????????????????????????? | | ??????????? ??????????????????????????????????? | | ???????? ?? ??????????????????????????????????? | | ????????? ?# ??????????????????????????????????? | | ????????? ## ??????????????????????????????????? | | ?????????? ?????????###??????????????????????? | | ?????????? #???????? #??????????????????????? | | ??????????? #????????#p###????????????????????? | | ???????????# #????????# ?????????????????????? | | ???????????# #????????#@#??????????????????????? | | ???????????# #????????# #??????????????????????? | | ???????????# #????????# #??????????????????????? | | ???????????# #????????# #??????????????????????? | | ???????????# ##########p#??????????????????????? | | ???????????# !% %%%+% #??????????????????????? | | ???????????# ######%### #??????????????????????? | | ???????????# #????#%#?# #??????????????????##### | | ???????????# ###??# #?# #??????????????????# # | | ???????????# # ### ###+#################### # | | ???????????# # | | ???????????# %=/ # | | ???????????# !! %! # | | ???????????########## ########### # ############ | | ????????????????????# #????????# ####??????????? | | ????????????????????# #????????#####?????????????? | | ????????????????????# ######?????????????????????? | | ????????????????????# ## #?????????????????????? | | ????????????????????#*## #######???????????????? | | ????????????????????#%= #???????????????? | | ????????????????????# ########" #???????????????? | | ???????????????????##%###????#" #???????????????? | | ???????????????????#* !!#????# #???????????????? | | ???????????????????#= %#????# ! #???????????????? | | ???????????????????# = !#????#"!!#???????????????? | +----------------------------------------------------+ Best States ------------- Heat Dissipation 64 Coolant Potential 65 Energy Generation 37 Energy Capacity 550 Matter Stores 300 Matter Capacity 300 Sight Range 16 Terrain Scan Density 10 Jamming Range 16 Armor Coverage 600 Resistance: KI 20 Resistance: TH 20 Resistance: EM 20 Utility Shielding 66 Phase Shifting 5 Evasion (%) 50 Targeting Accuracy 6 Recoil Reduction 6 Energy Filtering 30 Particle Charging 15 Offensive Hacking 10 Relay Coupler Types 2 Relay Coupler Value 76 Authchip Count 4 Item Schematics ----------------- None Robot Schematics ------------------ None Fabricated ------------ Adv. Cryofiber Web | x2 | -7/Factory | Preloaded A-02 Transporter | x1 | -6/Factory | Preloaded Repaired ---------- Nothing Alien Tech Used ----------------- None Achievements -------------- None Challenges ------------ None Game ------ Seed QuantumProjectileClaymores Manual? 0 Play Time 01:58:58 Cumulative 367.7 hours Start 2025.10.09 @ 09:42:50 End 2025.10.09 @ 16:35:26 Sessions 10 Manual Loads 0 Difficulty Rogue Special Mode None Game No. 483 Rogue 483 Adventurer 0 Explorer 0 Win Type - Total 11 Types 6/0/1/2/1/0/1/0/0/0 Lore% 87 Gallery% 83 Achievement% 70 Wizard Run 0 Options --------- Layout 0 ASCII 0 Keyboard 0 Movement Mouse Keybinds 0 Fullscreen 1 Font 24/Tamsyn Map View 76x50 Zoom Use 0% Tactical HUD 1 Map Filters NONE Filters NONE Steam 1 RUN: e095a303-5784-4db1-941e-3b7477327bd7